fUST/lending_fUST_20241231
["ID","MTS","AMOUNT","RATE_DAILY","PERIOD"]
[347224272,1735594232306,-500.0,0.00011223,2]
[347224274,1735594232315,-573.55,0.00011223,2]
[347224276,1735594232326,-500.0,0.00011223,2]
[347224278,1735594232335,-500.0,0.00011223,2]
[347224280,1735594232345,-188.92507338,0.00011223,2]
[347224283,1735594232356,-254.7119935,0.00011223,2]
[347224285,1735594232365,-73.69510674,0.00011223,2]
[347224287,1735594232376,-234.65477664,0.00011223,2]
[347224289,1735594232385,-155.9378144,0.00011223,2]
[347224389,1735594243163,-344.0621856,0.00011223,2]
[347224390,1735594243173,-500.0,0.00011497,2]
[347224391,1735594243182,-298.189467,0.00013973,2]
[347224392,1735594243192,-3132.2195724,0.00016138,2]
[347224393,1735594243201,-152.76,0.000186,2]
[347224394,1735594243211,-394.0,0.0001875,2]
[347224395,1735594243220,-662.026,0.0001947,2]
[347224397,1735594243229,-878.39,0.0002,2]
[347224398,1735594243239,-500.0,0.00020398,2]
[347224399,1735594243251,-500.0,0.00020398,2]
[347224400,1735594243261,-644.76,0.00020398,2]
[347224401,1735594243270,-500.0,0.00020398,2]
[347224402,1735594243279,-643.47,0.00020398,2]
[347224403,1735594243289,-560.25,0.00020398,2]
[347224404,1735594243299,-497.47293613,0.00020398,2]
[347224405,1735594243308,-500.0,0.00020398,2]
[347224406,1735594243318,-500.0,0.00020398,2]
[347224407,1735594243328,-500.0,0.00020398,2]
[347224408,1735594243337,-500.0,0.00020398,2]
[347224409,1735594243347,-500.0,0.00020398,2]
[347224410,1735594243356,-490.9,0.00020399,2]
[347224411,1735594243366,-500.0,0.00020399,2]
[347224412,1735594243376,-500.0,0.00020399,2]
[347224413,1735594243385,-169.785,0.00020399,2]
[347224414,1735594243395,-500.0,0.00020399,2]
[347224415,1735594243405,-500.0,0.00020399,2]
[347224416,1735594243414,-500.0,0.00020399,2]
[347224417,1735594243423,-500.0,0.00020399,2]
[347224418,1735594243433,-500.0,0.00020399,2]
[347224419,1735594243444,-500.0,0.00020399,2]
[347224420,1735594243454,-239.1964,0.00020399,2]
[347224421,1735594243463,-500.0,0.00020399,2]
[347224422,1735594243472,-511.99,0.00020399,2]
[347224423,1735594243481,-461.59342673,0.00020399,2]
[347224424,1735594243490,-179.7,0.00020399,2]
[347224425,1735594243506,-568.24,0.00020399,2]
[347224426,1735594243515,-500.0,0.00020399,2]
[347224427,1735594243524,-500.0,0.00020399,2]
[347224428,1735594243533,-500.0,0.00020399,2]
[347224429,1735594243543,-500.0,0.00020399,2]
[347224430,1735594243552,-500.0,0.00020399,2]
[347224431,1735594243561,-500.0,0.00020399,2]
[347224432,1735594243570,-500.0,0.00020399,2]
[347224433,1735594243579,-500.0,0.00020399,2]
[347224434,1735594243588,-500.0,0.00020399,2]
[347224435,1735594243597,-9699.824992,0.000204,3]
[347224436,1735594243606,-298.189467,0.00020447,2]
[347224437,1735594243616,-240.19400751,0.00020499,2]
[347224438,1735594243625,-160.0,0.00020499,2]
[347224439,1735594243635,-499.0,0.00020499,2]
[347224440,1735594243644,-52638.00653743,0.000205,7]
[347224441,1735594243706,-1298.21829363,0.000205,7]
[347224442,1735594243717,-609.8371585,0.000205,7]
[347224443,1735594243729,-1148.4465268,0.000205,7]
[347224450,1735594246291,-16130.96000001,0.000205,7]
[347224460,1735594384148,241.1628,0.00025984,120]
[347224461,1735594411016,160.0,0.00024708,120]
[347224463,1735594470772,160.0,0.00025177,120]
[347224466,1735594590811,160.0,0.00025212,120]
[347225664,1735594830911,160.0,0.00025612,120]
[347225670,1735595010751,160.0,0.00025715,120]
[347225672,1735595070713,160.0,0.00024451,120]
[347225677,1735595250780,160.0,0.00023603,120]
[347225688,1735595430775,160.0,0.0002513,120]
[347225756,1735595432772,-268.37052,0.00013973,2]
[347225758,1735595432782,-990.4847767,0.00018867,2]
[347225760,1735595432791,-66.82970328,0.00019178,2]
[347225761,1735595432802,-110.47737872,0.00019178,2]
[347225762,1735595432812,-634.387,0.0001947,2]
[347225763,1735595432821,-790.55,0.0002,2]
[347225764,1735595432830,-3744.93167035,0.0002,3]
[347225765,1735595432839,-203.8,0.00020223,2]
[347225766,1735595432849,-169.785,0.00020347,2]
[347225768,1735595432859,-500.0,0.00020399,2]
[347225770,1735595432868,-500.0,0.00020399,2]
[347225771,1735595432878,-268.37052,0.00020447,2]
[347225772,1735595432888,-500.0,0.00020498,2]
[347225773,1735595432898,-206.85409164,0.00020499,2]
[347225775,1735595432907,-491.35277967,0.00020499,2]
[347225776,1735595432918,-160.66605969,0.00020499,2]
[347225778,1735595432928,-500.0,0.00020499,2]
[347225780,1735595432938,-500.0,0.00020499,2]
[347225782,1735595432947,-500.0,0.00020499,2]
[347225784,1735595432956,-500.0,0.00020499,2]
[347225786,1735595432965,-500.0,0.00020499,2]
[347225788,1735595432975,-500.0,0.00020499,2]
[347225790,1735595432984,-410.40227649,0.00020499,2]
[347225792,1735595432994,-500.0,0.00020499,2]
[347225794,1735595433003,-500.0,0.00020499,2]
[347225796,1735595433012,-500.0,0.00020499,2]
[347225798,1735595433022,-500.0,0.00020499,2]
[347225800,1735595433032,-500.0,0.00020499,2]
[347225802,1735595433041,-500.0,0.00020499,2]
[347225804,1735595433051,-500.0,0.00020499,2]
[347225806,1735595433061,-500.0,0.00020499,2]
[347225808,1735595433071,-500.0,0.00020499,2]
[347225810,1735595433080,-500.0,0.00020499,2]
[347225812,1735595433090,-500.0,0.00020499,2]
[347225814,1735595433100,-500.0,0.00020499,2]
[347225816,1735595433110,-500.0,0.00020499,2]
[347225818,1735595433120,-500.0,0.00020499,2]
[347225820,1735595433131,-500.0,0.00020499,2]
[347225822,1735595433140,-500.0,0.00020499,2]
[347225824,1735595433150,-500.0,0.00020499,2]
[347225826,1735595433159,-500.0,0.00020499,2]
[347225828,1735595433169,-500.0,0.00020499,2]
[347225829,1735595433178,-198.42322344,0.00020499,2]
[347225831,1735595433262,-301.57677656,0.00020499,2]
[347225832,1735595433272,-31.02322344,0.00020499,2]
[347225834,1735595433284,-122.2558957,0.00020499,2]
[347225835,1735595433294,-258.4441043,0.00020499,2]
[347225836,1735595433306,-241.5558957,0.00020499,2]
[347225837,1735595433316,-500.0,0.00020499,2]
[347225838,1735595433325,-500.0,0.00020499,2]
[347225839,1735595433336,-500.0,0.00020499,2]
[347225840,1735595433346,-500.0,0.00020499,2]
[347225841,1735595433355,-80.4491043,0.00020499,2]
[347225852,1735595438876,-158.77890975,0.00020399,2]
[347225853,1735595438887,-419.5508957,0.00020499,2]
[347225854,1735595438896,-500.0,0.00020499,2]
[347225855,1735595438906,-500.0,0.00020499,2]
[347225856,1735595438915,-500.0,0.00020499,2]
[347225857,1735595438924,-500.0,0.00020499,2]
[347225858,1735595438933,-500.0,0.00020499,2]
[347225859,1735595438942,-500.0,0.00020499,2]
[347225860,1735595438951,-500.0,0.00020499,2]
[347225861,1735595438960,-500.0,0.00020499,2]
[347225862,1735595438970,-500.0,0.00020499,2]
[347225863,1735595438979,-500.0,0.00020499,2]
[347225864,1735595438988,-500.0,0.00020499,2]
[347225865,1735595438997,-500.0,0.00020499,2]
[347225866,1735595439006,-158.17693882,0.00020499,2]
[347225867,1735595439016,-500.0,0.00020499,2]
[347225868,1735595439025,-500.0,0.00020499,2]
[347225869,1735595439035,-500.0,0.00020499,2]
[347225870,1735595439045,-500.0,0.00020499,2]
[347225871,1735595439054,-500.0,0.00020499,2]
[347225872,1735595439064,-500.0,0.00020499,2]
[347225873,1735595439073,-500.0,0.00020499,2]
[347225874,1735595439083,-500.0,0.00020499,2]
[347225875,1735595439093,-167.40026951,0.00020499,2]
[347225876,1735595439102,-499.0,0.00020499,2]
[347225877,1735595439111,-581.64077246,0.000205,2]
[347225878,1735595439120,-7325.75996277,0.000205,2]
[347225879,1735595439130,-11082.80752289,0.000205,7]
[347225880,1735595439141,-5107.3114956,0.000205,7]
[347225881,1735595439152,-272750.0,0.000205,7]
[347225882,1735595439163,-17440.77118616,0.000205,7]
[347225883,1735595439175,-33863.511829,0.000205,7]
[347225884,1735595439184,-2000.0,0.000205,2]
[347225885,1735595439193,-500.0,0.000205,2]
[347225886,1735595439203,-500.0,0.000205,2]
[347225887,1735595439212,-151.0,0.000205,2]
[347225888,1735595439221,-741.41472515,0.000205,7]
[347225889,1735595439230,-14158.38,0.000205,2]
[347225890,1735595439240,-4970.71,0.000205,2]
[347225891,1735595439249,-14273.44,0.000205,2]
[347225892,1735595439260,-2000.0,0.000205,2]
[347225893,1735595439269,-544.07811686,0.000205,7]
[347225894,1735595439278,-150.051409,0.000205,2]
[347225895,1735595439305,-252.941424,0.00020521,2]
[347225896,1735595439315,-10314.42233733,0.00020627,2]
[347225897,1735595439324,-157.0,0.00020655,2]
[347225898,1735595439333,-157.0,0.00020655,2]
[347225899,1735595439343,-157.0,0.00020655,2]
[347225900,1735595439353,-157.0,0.00020655,2]
[347225901,1735595439362,-157.0,0.00020655,2]
[347225902,1735595439371,-157.0,0.00020655,2]
[347225903,1735595439380,-157.0,0.00020655,2]
[347225904,1735595439389,-157.0,0.00020655,2]
[347225905,1735595439398,-157.0,0.00020655,2]
[347225906,1735595439408,-157.0,0.00020655,2]
[347225907,1735595439417,-157.0,0.00020655,2]
[347225908,1735595439427,-157.0,0.00020655,2]
[347225909,1735595439437,-157.0,0.00020655,2]
[347225910,1735595439446,-157.0,0.00020655,2]
[347225911,1735595439455,-157.0,0.00020655,2]
[347225912,1735595439463,-157.0,0.00020655,2]
[347225913,1735595439472,-170.98,0.00020655,2]
[347225914,1735595439481,-500.0,0.00020673,2]
[347225915,1735595439491,-500.0,0.00020673,2]
[347225916,1735595439586,-32552.00431624,0.000207,3]
[347225917,1735595439595,-252.941424,0.00020712,2]
[347225918,1735595439605,-25718.18458637,0.0002079,2]
[347225919,1735595439614,-500.0,0.00020792,2]
[347225920,1735595439623,-500.0,0.00020795,2]
[347225921,1735595439632,-2000.0,0.000208,2]
[347225922,1735595439642,-500.0,0.00020829,2]
[347225923,1735595439651,-213.53839682,0.00020829,2]
[347225924,1735595439660,-53878.73786852,0.0002083,7]
[347225925,1735595439672,-77511.03691543,0.0002083,7]
[347225926,1735595439681,-500.0,0.0002083,2]
[347225927,1735595439690,-500.0,0.0002083,2]
[347225928,1735595439700,-500.0,0.0002083,2]
[347225929,1735595439709,-500.0,0.0002083,2]
[347225930,1735595439718,-500.0,0.0002083,2]
[347225931,1735595439727,-159.50263759,0.0002083,2]
[347225932,1735595439736,-500.0,0.0002083,2]
[347225933,1735595439745,-403.98399757,0.0002083,2]
[347225934,1735595439755,-151.0,0.0002083,2]
[347225935,1735595439764,-2664.0,0.00020883,2]
[347225936,1735595439773,-33567.9464371,0.00020883,2]
[347225937,1735595439782,-151.0,0.000209,3]
[347225938,1735595439807,-252.941424,0.00020904,2]
[347225939,1735595439816,-500.0,0.00020947,2]
[347225940,1735595439825,-500.0,0.00020973,2]
[347225941,1735595439835,-500.0,0.00020973,2]
[347225942,1735595439844,-152.76,0.00020983,2]
[347225943,1735595439854,-29740.8285884,0.00020983,10]
[347225944,1735595439866,-167500.00000284,0.00020983,10]
[347225958,1735595440412,-420.87043536,0.00020983,10]
[347225959,1735595440424,-1000.0,0.00020983,10]
[347225960,1735595440437,-3333.3,0.00020983,10]
[347226023,1735595443531,-500.0,0.00020493,2]
[347226024,1735595443548,-500.0,0.00020493,2]
[347226026,1735595443557,-158.77890975,0.00020883,2]
[347226028,1735595443566,-10682.69118627,0.00020983,10]
[347226031,1735595443580,-3138.9333612,0.00020983,10]
[347226034,1735595443590,-579.12956464,0.00020983,10]
[347226097,1735595730928,160.0,0.00020899,120]
[347226103,1735595850817,160.0,0.00025538,120]
[347226121,1735596191341,1629.0,0.00025984,120]
[347226135,1735596408161,-500.0,0.0001078,2]
[347226136,1735596408184,-261.533468,0.00013973,2]
[347226137,1735596408205,-394.0,0.00019448,2]
[347226138,1735596408227,-635.219,0.0001993,2]
[347226139,1735596408248,-711.49,0.0002,2]
[347226140,1735596408269,-3370.43850331,0.0002,3]
[347226141,1735596408291,-300.0,0.00020395,2]
[347226142,1735596408311,-500.0,0.00020395,2]
[347226143,1735596408331,-500.0,0.00020395,2]
[347226144,1735596408354,-500.0,0.00020395,2]
[347226145,1735596408374,-500.0,0.00020395,2]
[347226146,1735596408395,-610.55916132,0.00020395,2]
[347226147,1735596408419,-610.55916132,0.00020395,2]
[347226148,1735596408441,-500.0,0.00020395,2]
[347226149,1735596408463,-500.0,0.00020395,2]
[347226150,1735596408485,-500.0,0.00020395,2]
[347226151,1735596408505,-500.0,0.00020395,2]
[347226152,1735596408525,-265.81769389,0.00020395,2]
[347226153,1735596408546,-104.70305116,0.00020395,2]
[347226235,1735596632654,-177.307082,0.00018986,2]
[347226237,1735596632663,-177.307082,0.00019178,2]
[347226239,1735596632672,-640.34,0.0002,2]
[347226241,1735596632682,-435.28155424,0.00020299,2]
[347226243,1735596632691,-500.0,0.00020393,2]
[347226245,1735596632700,-500.0,0.00020393,2]
[347226247,1735596632709,-184.59198176,0.00020393,2]
[347226249,1735596632720,-315.40801824,0.00020393,2]
[347226251,1735596632729,-500.0,0.00020393,2]
[347226253,1735596632738,-597.30094758,0.00020393,2]
[347226255,1735596632747,-500.0,0.00020393,2]
[347226257,1735596632756,-500.0,0.00020393,2]
[347226259,1735596632764,-500.0,0.00020393,2]
[347226261,1735596632774,-597.30094758,0.00020393,2]
[347226264,1735596632784,-170.71931222,0.00020393,2]
[347226266,1735596632793,-251.75752154,0.00020393,2]
[347226268,1735596632802,-597.30094758,0.00020393,2]
[347226270,1735596632811,-408.77143082,0.00020393,2]
[347226272,1735596632823,-500.0,0.00020393,2]
[347226274,1735596632834,-597.30094758,0.00020393,2]
[347226276,1735596632843,-597.30094758,0.00020393,2]
[347226278,1735596632854,-597.30094758,0.00020393,2]
[347226280,1735596632863,-597.30094758,0.00020393,2]
[347226282,1735596632875,-597.30094758,0.00020393,2]
[347226284,1735596632884,-597.30094758,0.00020393,2]
[347226286,1735596632893,-597.30094758,0.00020393,2]
[347226288,1735596632903,-597.30094758,0.00020393,2]
[347226290,1735596632912,-597.30094758,0.00020393,2]
[347226292,1735596632921,-500.0,0.00020394,2]
[347226294,1735596632931,-1200.0,0.00020395,2]
[347226296,1735596632940,-151.0,0.00020395,2]
[347226298,1735596632951,-500.0,0.00020395,2]
[347226300,1735596632960,-500.0,0.00020395,2]
[347226302,1735596632970,-500.0,0.00020395,2]
[347226304,1735596632979,-500.0,0.00020395,2]
[347226306,1735596632989,-500.0,0.00020395,2]
[347226308,1735596632998,-500.0,0.00020395,2]
[347226310,1735596633008,-500.0,0.00020396,2]
[347226312,1735596633018,-500.0,0.00020396,2]
[347226314,1735596633027,-500.0,0.00020396,2]
[347226316,1735596633037,-500.0,0.00020396,2]
[347226318,1735596633047,-500.0,0.00020396,2]
[347226322,1735596633067,-500.0,0.00020396,2]
[347226324,1735596633078,-500.0,0.00020396,2]
[347226326,1735596633087,-500.0,0.00020396,2]
[347226328,1735596633097,-500.0,0.00020396,2]
[347226330,1735596633108,-500.0,0.00020396,2]
[347226332,1735596633117,-500.0,0.00020396,2]
[347226334,1735596633127,-500.0,0.00020396,2]
[347226335,1735596633137,-500.0,0.00020396,2]
[347226337,1735596633147,-500.0,0.00020396,2]
[347226339,1735596633157,-500.0,0.00020396,2]
[347226342,1735596633168,-245.66927522,0.00020398,2]
[347226343,1735596633180,-168.486,0.00020398,2]
[347226346,1735596633191,-500.0,0.00020398,2]
[347226348,1735596633201,-500.0,0.00020398,2]
[347226350,1735596633210,-500.0,0.00020398,2]
[347226352,1735596633220,-114.42239547,0.00020398,2]
[347226354,1735596633235,-507.01368153,0.00020398,2]
[347226356,1735596633245,-500.0,0.00020398,2]
[347226358,1735596633255,-500.0,0.00020398,2]
[347226360,1735596633265,-500.0,0.00020398,2]
[347226362,1735596633274,-500.0,0.00020398,2]
[347226364,1735596633284,-500.0,0.00020398,2]
[347226366,1735596633294,-500.0,0.00020398,2]
[347226368,1735596633304,-500.0,0.00020398,2]
[347226370,1735596633313,-532.50728286,0.00020398,2]
[347226372,1735596633323,-500.96220777,0.00020398,2]
[347226374,1735596633333,-500.0,0.00020398,2]
[347226377,1735596633343,-500.0,0.00020398,2]
[347226379,1735596633354,-500.0,0.00020398,2]
[347226380,1735596633363,-500.0,0.00020398,2]
[347226382,1735596633372,-500.0,0.00020398,2]
[347226383,1735596633382,-500.0,0.00020398,2]
[347226384,1735596633391,-500.0,0.00020398,2]
[347226385,1735596633400,-500.0,0.00020398,2]
[347226386,1735596633411,-500.0,0.00020398,2]
[347226387,1735596633420,-500.0,0.00020398,2]
[347226388,1735596633430,-500.0,0.00020398,2]
[347226389,1735596633440,-500.0,0.00020398,2]
[347226390,1735596633449,-500.0,0.00020398,2]
[347226391,1735596633459,-500.0,0.00020398,2]
[347226392,1735596633469,-500.0,0.00020398,2]
[347226393,1735596633478,-500.0,0.00020398,2]
[347226394,1735596633488,-500.0,0.00020398,2]
[347226395,1735596633497,-500.0,0.00020398,2]
[347226396,1735596633507,-151.94962923,0.00020398,2]
[347226397,1735596633519,-348.05037077,0.00020398,2]
[347226398,1735596633529,-500.0,0.00020398,2]
[347226399,1735596633538,-500.0,0.00020398,2]
[347226400,1735596633547,-500.0,0.00020398,2]
[347226401,1735596633556,-621.13643368,0.00020398,2]
[347226402,1735596633566,-500.0,0.00020398,2]
[347226403,1735596633576,-200.0,0.00020398,2]
[347226404,1735596633585,-500.0,0.00020398,2]
[347226405,1735596633595,-500.0,0.00020398,2]
[347226406,1735596633606,-504.0,0.00020398,2]
[347226407,1735596633615,-500.0,0.00020398,2]
[347226408,1735596633625,-500.0,0.00020398,2]
[347226409,1735596633634,-500.0,0.00020398,2]
[347226410,1735596633644,-500.0,0.00020398,2]
[347226411,1735596633654,-500.0,0.00020398,2]
[347226412,1735596633664,-500.0,0.00020398,2]
[347226422,1735596633788,-500.0,0.00020398,2]
[347226424,1735596633801,-500.0,0.00020398,2]
[347226427,1735596633812,-455.70709484,0.00020398,2]
[347226429,1735596633826,-500.0,0.00020398,2]
[347226431,1735596633835,-500.0,0.00020398,2]
[347226433,1735596633845,-500.0,0.00020398,2]
[347226435,1735596633858,-500.0,0.00020398,2]
[347226437,1735596633868,-500.0,0.00020398,2]
[347226439,1735596633879,-500.0,0.00020398,2]
[347226440,1735596633888,-500.0,0.00020398,2]
[347226443,1735596633897,-500.0,0.00020398,2]
[347226444,1735596633906,-521.56,0.00020398,2]
[347226447,1735596633917,-1954.07,0.00020398,2]
[347226448,1735596633926,-500.0,0.00020398,2]
[347226450,1735596633935,-500.0,0.00020398,2]
[347226452,1735596633945,-500.0,0.00020398,2]
[347226455,1735596633955,-500.0,0.00020398,2]
[347226457,1735596633964,-500.0,0.00020398,2]
[347226459,1735596633974,-500.0,0.00020398,2]
[347226461,1735596633983,-500.0,0.00020398,2]
[347226463,1735596633992,-500.0,0.00020398,2]
[347226465,1735596634001,-500.0,0.00020398,2]
[347226467,1735596634011,-500.0,0.00020398,2]
[347226469,1735596634020,-500.0,0.00020398,2]
[347226471,1735596634029,-500.0,0.00020398,2]
[347226473,1735596634038,-500.0,0.00020398,2]
[347226475,1735596634047,-500.0,0.00020398,2]
[347226477,1735596634056,-500.0,0.00020398,2]
[347226479,1735596634066,-500.0,0.00020398,2]
[347226480,1735596634075,-500.0,0.00020398,2]
[347226482,1735596634084,-500.0,0.00020398,2]
[347226485,1735596634094,-500.0,0.00020398,2]
[347226486,1735596634104,-500.0,0.00020398,2]
[347226489,1735596634113,-500.0,0.00020398,2]
[347226491,1735596634122,-500.0,0.00020398,2]
[347226493,1735596634131,-500.0,0.00020398,2]
[347226495,1735596634141,-500.0,0.00020398,2]
[347226497,1735596634150,-500.0,0.00020398,2]
[347226499,1735596634159,-500.0,0.00020398,2]
[347226500,1735596634177,-500.0,0.00020398,2]
[347226502,1735596634187,-500.0,0.00020398,2]
[347226505,1735596634197,-500.0,0.00020398,2]
[347226507,1735596634208,-500.0,0.00020398,2]
[347226509,1735596634217,-500.0,0.00020398,2]
[347226511,1735596634227,-500.0,0.00020398,2]
[347226513,1735596634236,-500.0,0.00020398,2]
[347226515,1735596634245,-500.0,0.00020398,2]
[347226517,1735596634255,-500.0,0.00020398,2]
[347226519,1735596634264,-500.0,0.00020398,2]
[347226521,1735596634273,-500.0,0.00020398,2]
[347226523,1735596634282,-500.0,0.00020398,2]
[347226525,1735596634291,-500.0,0.00020398,2]
[347226527,1735596634301,-499.0,0.00020398,2]
[347226529,1735596634310,-500.0,0.00020398,2]
[347226530,1735596634319,-500.0,0.00020398,2]
[347226532,1735596634329,-500.0,0.00020398,2]
[347226535,1735596634338,-500.0,0.00020398,2]
[347226537,1735596634347,-558.41,0.00020398,2]
[347226539,1735596634358,-193.08728572,0.00020398,2]
[347226541,1735596634367,-10271.31,0.00020398,2]
[347226543,1735596634377,-593.78,0.00020398,2]
[347226545,1735596634386,-500.0,0.00020398,2]
[347226547,1735596634395,-500.0,0.00020398,2]
[347226549,1735596634404,-500.0,0.00020398,2]
[347226551,1735596634413,-500.0,0.00020398,2]
[347226553,1735596634423,-500.0,0.00020398,2]
[347226555,1735596634432,-500.0,0.00020398,2]
[347226557,1735596634442,-500.0,0.00020398,2]
[347226559,1735596634451,-500.0,0.00020398,2]
[347226561,1735596634461,-500.0,0.00020398,2]
[347226563,1735596634470,-500.0,0.00020398,2]
[347226565,1735596634479,-500.0,0.00020398,2]
[347226567,1735596634488,-500.0,0.00020398,2]
[347226569,1735596634497,-500.0,0.00020398,2]
[347226571,1735596634507,-500.0,0.00020398,2]
[347226573,1735596634515,-152.76,0.00020398,2]
[347226575,1735596634525,-500.0,0.00020399,2]
[347226577,1735596634533,-500.0,0.00020399,2]
[347226579,1735596634543,-500.0,0.00020399,2]
[347226580,1735596634552,-500.0,0.00020399,2]
[347226583,1735596634564,-500.0,0.00020399,2]
[347226585,1735596634576,-190.38130304,0.00020399,2]
[347226587,1735596634585,-500.0,0.00020399,2]
[347226589,1735596634594,-500.0,0.00020399,2]
[347226591,1735596634605,-427.98235156,0.00020399,2]
[347226593,1735596634614,-500.0,0.00020399,2]
[347226595,1735596634624,-507.25932793,0.00020399,2]
[347226597,1735596634633,-500.0,0.00020399,2]
[347226599,1735596634642,-500.0,0.00020399,2]
[347226601,1735596634651,-500.0,0.00020399,2]
[347226603,1735596634661,-500.0,0.00020399,2]
[347226605,1735596634670,-500.0,0.00020399,2]
[347226607,1735596634680,-500.0,0.00020399,2]
[347226609,1735596634689,-500.0,0.00020399,2]
[347226611,1735596634698,-500.0,0.00020399,2]
[347226614,1735596634708,-500.0,0.00020399,2]
[347226616,1735596634718,-500.0,0.00020399,2]
[347226618,1735596634727,-500.0,0.00020399,2]
[347226620,1735596634736,-500.0,0.00020399,2]
[347226622,1735596634745,-433.54741425,0.00020399,2]
[347226624,1735596634755,-502.01120118,0.00020399,2]
[347226625,1735596634764,-500.0,0.00020399,2]
[347226627,1735596634773,-500.0,0.00020399,2]
[347226629,1735596634783,-500.0,0.00020399,2]
[347226631,1735596634792,-500.0,0.00020399,2]
[347226634,1735596634801,-500.0,0.00020399,2]
[347226636,1735596634811,-500.0,0.00020399,2]
[347226637,1735596634820,-500.0,0.00020399,2]
[347226639,1735596634833,-500.0,0.00020399,2]
[347226642,1735596634843,-505.56482017,0.00020399,2]
[347226643,1735596634853,-500.0,0.00020399,2]
[347226646,1735596634863,-500.0,0.00020399,2]
[347226647,1735596634873,-483.33101471,0.00020399,2]
[347226649,1735596634882,-500.0,0.00020399,2]
[347226652,1735596634892,-500.0,0.00020399,2]
[347226654,1735596634903,-500.0,0.00020399,2]
[347226656,1735596634912,-500.0,0.00020399,2]
[347226658,1735596634922,-500.0,0.00020399,2]
[347226660,1735596634931,-500.0,0.00020399,2]
[347226662,1735596634940,-500.0,0.00020399,2]
[347226663,1735596634949,-500.0,0.00020399,2]
[347226666,1735596634958,-500.0,0.00020399,2]
[347226668,1735596634967,-500.0,0.00020399,2]
[347226670,1735596634976,-500.0,0.00020399,2]
[347226672,1735596634985,-500.0,0.00020399,2]
[347226674,1735596634994,-500.0,0.00020399,2]
[347226676,1735596635004,-500.0,0.00020399,2]
[347226678,1735596635013,-500.0,0.00020399,2]
[347226680,1735596635023,-500.0,0.00020399,2]
[347226682,1735596635032,-500.0,0.00020399,2]
[347226684,1735596635041,-500.0,0.00020399,2]
[347226685,1735596635050,-500.0,0.00020399,2]
[347226686,1735596635059,-500.0,0.00020399,2]
[347226687,1735596635068,-500.0,0.00020399,2]
[347226688,1735596635078,-500.0,0.00020399,2]
[347226689,1735596635088,-500.0,0.00020399,2]
[347226690,1735596635097,-500.0,0.00020399,2]
[347226691,1735596635109,-509.82,0.00020399,2]
[347226692,1735596635117,-500.0,0.00020399,2]
[347226693,1735596635126,-500.0,0.00020399,2]
[347226694,1735596635135,-500.0,0.00020399,2]
[347226695,1735596635145,-500.0,0.00020399,2]
[347226696,1735596635154,-500.0,0.00020399,2]
[347226697,1735596635170,-500.0,0.00020399,2]
[347226698,1735596635179,-500.0,0.00020399,2]
[347226699,1735596635189,-500.0,0.00020399,2]
[347226700,1735596635198,-325.4,0.00020399,2]